[Event "Early-Titled-Tuesday-Blitz-August-29-2023"]
[Site "Chess.com"]
[Date "2023.08.29"]
[Round "4"]
[White "Maili15"]
[Black "Vesper2018"]
[Result "0-1"]
[WhiteElo "2340"]
[BlackElo "2602"]
[TimeControl "180+1"]
[EndTime "8:39:30 PDT"]
[Termination "Vesper2018 won on time"]

1. e4 {[%clk 0:03:00.9]} 1... c5 {[%clk 0:02:59.9]} 2. Nf3 {[%clk 0:03:00.1]}
2... d6 {[%clk 0:03:00.2]} 3. Nc3 {[%clk 0:02:59.8]} 3... a6 {[%clk 0:02:54.3]}
4. d4 {[%clk 0:02:58.6]} 4... cxd4 {[%clk 0:02:54.1]} 5. Nxd4 {[%clk 0:02:59.5]}
5... Nf6 {[%clk 0:02:54.5]} 6. Bg5 {[%clk 0:02:57.5]} 6... Nbd7 {[%clk
0:02:53.4]} 7. Bc4 {[%clk 0:02:56.9]} 7... Qb6 {[%clk 0:02:53.1]} 8. Bb3 {[%clk
0:02:52.2]} 8... e6 {[%clk 0:02:52.9]} 9. Bxf6 {[%clk 0:02:48.4]} 9... Nxf6
{[%clk 0:02:50.6]} 10. Qd2 {[%clk 0:02:49]} 10... Nd7 {[%clk 0:02:48.8]} 11.
O-O-O {[%clk 0:02:47.7]} 11... Nc5 {[%clk 0:02:48.5]} 12. Rhe1 {[%clk
0:02:44.3]} 12... Be7 {[%clk 0:02:43.3]} 13. Nf5 {[%clk 0:02:13.5]} 13... Bf8
{[%clk 0:01:47.4]} 14. Nxd6+ {[%clk 0:02:07]} 14... Bxd6 {[%clk 0:01:47]} 15.
Qxd6 {[%clk 0:02:07.4]} 15... Qxd6 {[%clk 0:01:47.1]} 16. Rxd6 {[%clk
0:02:07.6]} 16... b5 {[%clk 0:01:46.2]} 17. Red1 {[%clk 0:01:52.7]} 17... Bb7
{[%clk 0:01:44]} 18. f3 {[%clk 0:01:50]} 18... Rc8 {[%clk 0:01:37.5]} 19. Kd2
{[%clk 0:01:29.9]} 19... Ke7 {[%clk 0:01:31.2]} 20. Ke3 {[%clk 0:01:21]} 20...
Rc7 {[%clk 0:01:31.2]} 21. R1d2 {[%clk 0:00:53.8]} 21... g5 {[%clk 0:01:31]} 22.
Ne2 {[%clk 0:00:48.6]} 22... h5 {[%clk 0:01:24.8]} 23. Rd1 {[%clk 0:00:34.5]}
23... h4 {[%clk 0:01:13.4]} 24. R6d2 {[%clk 0:00:32.9]} 24... h3 {[%clk
0:01:10.3]} 25. g3 {[%clk 0:00:31.2]} 25... g4 {[%clk 0:01:10.6]} 26. fxg4
{[%clk 0:00:18.7]} 26... Nxe4 {[%clk 0:01:10.4]} 27. Rd4 {[%clk 0:00:18.5]}
27... Ng5 {[%clk 0:01:07.3]} 28. Rf1 {[%clk 0:00:09.3]} 28... Rc5 {[%clk
0:00:59.5]} 29. c3 {[%clk 0:00:08.8]} 29... Re5+ {[%clk 0:00:58.6]} 30. Kd3
{[%clk 0:00:08.9]} 30... Nf3 {[%clk 0:00:29.1]} 31. Rxf3 {[%clk 0:00:03.4]}
31... Bxf3 {[%clk 0:00:28.6]} 32. Nf4 {[%clk 0:00:03.6]} 32... Re1 {[%clk
0:00:23.2]} 33. c4 {[%clk 0:00:02.2]} 33... Rh1 {[%clk 0:00:16.1]} 34. cxb5
{[%clk 0:00:02]} 34... axb5 {[%clk 0:00:15.9]} 35. Rb4 {[%clk 0:00:02.4]} 35...
Rxh2 {[%clk 0:00:15.6]} 36. Rxb5 {[%clk 0:00:01.6]} 36... Rh1 {[%clk 0:00:15.4]}
37. Rb6 {[%clk 0:00:01.8]} 37... h2 {[%clk 0:00:14.8]} 38. Ke3 {[%clk
0:00:02.1]} 38... Ba8 {[%clk 0:00:13.5]} 39. Ra6 {[%clk 0:00:01.7]} 39... Re1+
{[%clk 0:00:13]} 0-1

[Event "Early-Titled-Tuesday-Blitz-August-29-2023"]
[Site "Chess.com"]
[Date "2023.08.29"]
[Round "4"]
[White "Nathan_Filgueiras"]
[Black "sorch29"]
[Result "1-0"]
[WhiteElo "2521"]
[BlackElo "2357"]
[TimeControl "180+1"]
[EndTime "8:39:30 PDT"]
[Termination "Nathan_Filgueiras won on time"]

1. e4 {[%clk 0:03:00.9]} 1... c5 {[%clk 0:02:58.9]} 2. Nf3 {[%clk 0:02:58.5]}
2... Nc6 {[%clk 0:02:57.5]} 3. d4 {[%clk 0:02:58.9]} 3... cxd4 {[%clk
0:02:57.1]} 4. Nxd4 {[%clk 0:02:59.8]} 4... Nf6 {[%clk 0:02:57.3]} 5. Nc3 {[%clk
0:02:59.3]} 5... d6 {[%clk 0:02:57.7]} 6. Bg5 {[%clk 0:02:59.7]} 6... e6 {[%clk
0:02:57]} 7. Qd2 {[%clk 0:02:59.8]} 7... Qb6 {[%clk 0:02:57.2]} 8. O-O-O {[%clk
0:02:58.9]} 8... Qxd4 {[%clk 0:02:56.5]} 9. Qxd4 {[%clk 0:02:59.8]} 9... Nxd4
{[%clk 0:02:57]} 10. Rxd4 {[%clk 0:02:59.9]} 10... a6 {[%clk 0:02:57.4]} 11. Be2
{[%clk 0:02:58.4]} 11... Bd7 {[%clk 0:02:56.3]} 12. Rhd1 {[%clk 0:02:57.6]}
12... Bc6 {[%clk 0:02:56.2]} 13. f3 {[%clk 0:02:57.3]} 13... Be7 {[%clk
0:02:53.8]} 14. Kb1 {[%clk 0:02:56.3]} 14... h6 {[%clk 0:02:44]} 15. Be3 {[%clk
0:02:52.3]} 15... g5 {[%clk 0:02:34.7]} 16. Bf2 {[%clk 0:02:41.8]} 16... O-O
{[%clk 0:02:15.6]} 17. Bg3 {[%clk 0:02:41.4]} 17... Ne8 {[%clk 0:02:15.6]} 18.
e5 {[%clk 0:02:27.7]} 18... dxe5 {[%clk 0:01:53.2]} 19. Bxe5 {[%clk 0:02:27.7]}
19... Bf6 {[%clk 0:01:46.4]} 20. Bxf6 {[%clk 0:02:22.6]} 20... Nxf6 {[%clk
0:01:47.3]} 21. h4 {[%clk 0:02:19.5]} 21... Rfe8 {[%clk 0:01:26.3]} 22. Bd3
{[%clk 0:02:02.4]} 22... Kf8 {[%clk 0:01:18.5]} 23. hxg5 {[%clk 0:01:52.8]}
23... hxg5 {[%clk 0:01:18.2]} 24. Be4 {[%clk 0:01:53.3]} 24... Nxe4 {[%clk
0:01:09.6]} 25. Nxe4 {[%clk 0:01:53.2]} 25... Bxe4 {[%clk 0:01:05.5]} 26. fxe4
{[%clk 0:01:54.1]} 26... Re7 {[%clk 0:00:43]} 27. c4 {[%clk 0:01:35]} 27... Rc7
{[%clk 0:00:36.1]} 28. b4 {[%clk 0:01:24.7]} 28... a5 {[%clk 0:00:23.6]} 29. a3
{[%clk 0:01:24.5]} 29... axb4 {[%clk 0:00:22.8]} 30. axb4 {[%clk 0:01:25.4]}
30... Ra3 {[%clk 0:00:15.4]} 31. Kb2 {[%clk 0:01:22.5]} 31... Re3 {[%clk
0:00:10.9]} 32. c5 {[%clk 0:01:10.5]} 32... e5 {[%clk 0:00:09.7]} 33. Rd8+
{[%clk 0:01:09.2]} 33... Ke7 {[%clk 0:00:10.1]} 34. R8d6 {[%clk 0:00:58.1]}
34... Rxe4 {[%clk 0:00:10.1]} 35. Kb3 {[%clk 0:00:58.6]} 35... Re2 {[%clk
0:00:06.9]} 36. Kc4 {[%clk 0:00:25.8]} 36... Rxg2 {[%clk 0:00:06.1]} 37. Re1
{[%clk 0:00:26.1]} 37... f6 {[%clk 0:00:05.8]} 38. Rf1 {[%clk 0:00:26.1]} 38...
b6 {[%clk 0:00:02.5]} 39. Rdxf6 {[%clk 0:00:19.9]} 39... Rg4+ {[%clk 0:00:02.9]}
40. Kb5 {[%clk 0:00:19.5]} 40... bxc5 {[%clk 0:00:03.3]} 41. bxc5 {[%clk
0:00:18.6]} 41... e4 {[%clk 0:00:02.5]} 42. Rf7+ {[%clk 0:00:18.6]} 42... Kd8
{[%clk 0:00:02.4]} 43. Rf8+ {[%clk 0:00:19]} 1-0

[Event "Early-Titled-Tuesday-Blitz-August-29-2023"]
[Site "Chess.com"]
[Date "2023.08.29"]
[Round "4"]
[White "Henryk_S"]
[Black "Apocalyps999"]
[Result "1-0"]
[WhiteElo "2136"]
[BlackElo "2325"]
[TimeControl "180+1"]
[EndTime "8:39:30 PDT"]
[Termination "Henryk_S won by resignation"]

1. e4 {[%clk 0:03:00.9]} 1... e5 {[%clk 0:02:56.3]} 2. Nf3 {[%clk 0:03:00.7]}
2... Nc6 {[%clk 0:02:55.5]} 3. Nc3 {[%clk 0:03:00.6]} 3... Nf6 {[%clk
0:02:54.7]} 4. Bb5 {[%clk 0:02:59.8]} 4... Nd4 {[%clk 0:02:53.3]} 5. Bc4 {[%clk
0:02:58.8]} 5... c6 {[%clk 0:01:41.7]} 6. Bb3 {[%clk 0:02:22.2]} 6... d6 {[%clk
0:01:26.1]} 7. h3 {[%clk 0:02:19.5]} 7... Be7 {[%clk 0:01:22.4]} 8. d3 {[%clk
0:02:16.8]} 8... h6 {[%clk 0:01:16.7]} 9. Be3 {[%clk 0:02:15.8]} 9... Nxb3
{[%clk 0:01:15.9]} 10. axb3 {[%clk 0:02:16.7]} 10... a6 {[%clk 0:01:08.9]} 11.
Na4 {[%clk 0:02:11.4]} 11... b5 {[%clk 0:00:56]} 12. Nb6 {[%clk 0:02:09]} 12...
Rb8 {[%clk 0:00:55.5]} 13. Nxc8 {[%clk 0:02:08.9]} 13... Qxc8 {[%clk 0:00:55.3]}
14. Qd2 {[%clk 0:02:04.5]} 14... Nd7 {[%clk 0:00:50.5]} 15. O-O {[%clk
0:02:00.9]} 15... g5 {[%clk 0:00:49.3]} 16. d4 {[%clk 0:01:58.8]} 16... f6
{[%clk 0:00:45.8]} 17. Qe2 {[%clk 0:01:41]} 17... h5 {[%clk 0:00:36.5]} 18. dxe5
{[%clk 0:01:37.5]} 18... Nxe5 {[%clk 0:00:31.3]} 19. Nd4 {[%clk 0:01:31.8]}
19... g4 {[%clk 0:00:26.2]} 20. h4 {[%clk 0:01:31.1]} 20... Ra8 {[%clk
0:00:18.4]} 21. Nf5 {[%clk 0:01:24.3]} 21... Qd7 {[%clk 0:00:16.2]} 22. Rfd1
{[%clk 0:01:21.3]} 22... Bf8 {[%clk 0:00:15.5]} 23. c4 {[%clk 0:01:11.3]} 23...
bxc4 {[%clk 0:00:14.1]} 24. bxc4 {[%clk 0:01:10.9]} 24... Nf7 {[%clk 0:00:14.1]}
25. b4 {[%clk 0:01:01.2]} 25... Rh7 {[%clk 0:00:08.3]} 26. b5 {[%clk 0:00:58.8]}
26... cxb5 {[%clk 0:00:06.7]} 27. cxb5 {[%clk 0:00:59]} 27... a5 {[%clk
0:00:07.2]} 28. b6 {[%clk 0:00:58.7]} 28... Nh6 {[%clk 0:00:05.8]} 29. Bxh6
{[%clk 0:00:55]} 29... Bxh6 {[%clk 0:00:05.4]} 30. Nxd6+ {[%clk 0:00:54.6]}
30... Kf8 {[%clk 0:00:05.1]} 31. b7 {[%clk 0:00:54.3]} 31... Rb8 {[%clk
0:00:05.4]} 32. Qb2 {[%clk 0:00:50.4]} 32... Qc7 {[%clk 0:00:05]} 33. Qxf6+
{[%clk 0:00:49.2]} 33... Kg8 {[%clk 0:00:05.9]} 34. Qg6+ {[%clk 0:00:45.7]}
34... Rg7 {[%clk 0:00:05.2]} 35. Qxh6 {[%clk 0:00:45.3]} 35... g3 {[%clk
0:00:05.4]} 36. Qe6+ {[%clk 0:00:41.5]} 36... Kh8 {[%clk 0:00:04.1]} 37. Nf5
{[%clk 0:00:37.3]} 37... gxf2+ {[%clk 0:00:03.4]} 38. Kh1 {[%clk 0:00:36.5]}
38... Rxg2 {[%clk 0:00:02.8]} 39. Qh6+ {[%clk 0:00:26.6]} 39... Kg8 {[%clk
0:00:03.1]} 40. Kxg2 {[%clk 0:00:24.1]} 40... Rxb7 {[%clk 0:00:03.6]} 41. Rf1
{[%clk 0:00:15.2]} 41... Qc6 {[%clk 0:00:02.1]} 42. Qxc6 {[%clk 0:00:13]} 1-0

[Event "Early-Titled-Tuesday-Blitz-August-29-2023"]
[Site "Chess.com"]
[Date "2023.08.29"]
[Round "4"]
[White "DrDreBeats"]
[Black "HansOnTwitch"]
[Result "1/2-1/2"]
[WhiteElo "2604"]
[BlackElo "2885"]
[TimeControl "180+1"]
[EndTime "8:39:31 PDT"]
[Termination "Game drawn by repetition"]

1. e4 {[%clk 0:03:00.9]} 1... c5 {[%clk 0:02:57.7]} 2. Nf3 {[%clk 0:03:00.6]}
2... d6 {[%clk 0:02:57.6]} 3. d4 {[%clk 0:03:00.4]} 3... cxd4 {[%clk 0:02:58.2]}
4. Nxd4 {[%clk 0:03:00.5]} 4... Nf6 {[%clk 0:02:58.3]} 5. Nc3 {[%clk 0:03:00.2]}
5... a6 {[%clk 0:02:58.2]} 6. Be3 {[%clk 0:02:59.6]} 6... e5 {[%clk 0:02:57.8]}
7. Nf3 {[%clk 0:02:59.7]} 7... Be7 {[%clk 0:02:56.5]} 8. Bc4 {[%clk 0:02:59.5]}
8... O-O {[%clk 0:02:54.4]} 9. O-O {[%clk 0:02:59.3]} 9... Be6 {[%clk
0:02:52.4]} 10. Bb3 {[%clk 0:02:58.8]} 10... Nc6 {[%clk 0:02:52.2]} 11. Qe2
{[%clk 0:02:58.9]} 11... Na5 {[%clk 0:02:49.3]} 12. Rfd1 {[%clk 0:02:58.2]}
12... Nxb3 {[%clk 0:02:44.3]} 13. cxb3 {[%clk 0:02:57.8]} 13... h6 {[%clk
0:02:43.1]} 14. Ne1 {[%clk 0:02:57.1]} 14... Rc8 {[%clk 0:02:39.7]} 15. Nc2
{[%clk 0:02:56.8]} 15... Qa5 {[%clk 0:02:31.2]} 16. h3 {[%clk 0:02:46.3]} 16...
b5 {[%clk 0:02:27.6]} 17. Rac1 {[%clk 0:02:23.6]} 17... b4 {[%clk 0:02:24.8]}
18. Na4 {[%clk 0:02:21.1]} 18... Qb5 {[%clk 0:02:21.9]} 19. Qxb5 {[%clk
0:02:17.4]} 19... axb5 {[%clk 0:02:21.2]} 20. Nb6 {[%clk 0:02:18]} 20... Rce8
{[%clk 0:02:00.5]} 21. f3 {[%clk 0:02:14.6]} 21... Rb8 {[%clk 0:01:14]} 22. Nxb4
{[%clk 0:02:13.2]} 22... Rb7 {[%clk 0:01:13.7]} 23. N4d5 {[%clk 0:02:12]} 23...
Nxd5 {[%clk 0:01:09.8]} 24. Nxd5 {[%clk 0:02:11.5]} 24... Ra8 {[%clk 0:00:55.2]}
25. a3 {[%clk 0:02:08.5]} 25... Bf8 {[%clk 0:00:54.4]} 26. b4 {[%clk 0:02:03.1]}
26... Rd8 {[%clk 0:00:47.6]} 27. Bb6 {[%clk 0:01:56.3]} 27... Rdd7 {[%clk
0:00:44.1]} 28. Be3 {[%clk 0:01:49.7]} 28... f5 {[%clk 0:00:43.6]} 29. Rc8
{[%clk 0:01:35]} 29... Kf7 {[%clk 0:00:39.8]} 30. Nb6 {[%clk 0:01:31.4]} 30...
Rdc7 {[%clk 0:00:35.4]} 31. Rxc7+ {[%clk 0:01:24.1]} 31... Rxc7 {[%clk
0:00:36.3]} 32. Rc1 {[%clk 0:01:24.1]} 32... Rxc1+ {[%clk 0:00:29.4]} 33. Bxc1
{[%clk 0:01:25]} 33... fxe4 {[%clk 0:00:29.3]} 34. fxe4 {[%clk 0:01:25.1]} 34...
Bb3 {[%clk 0:00:27.4]} 35. Kf2 {[%clk 0:01:24.2]} 35... Ke6 {[%clk 0:00:25.9]}
36. Ke3 {[%clk 0:01:23.7]} 36... Be7 {[%clk 0:00:20.3]} 37. Kd3 {[%clk
0:01:23.8]} 37... Bd8 {[%clk 0:00:19.5]} 38. Be3 {[%clk 0:01:23.7]} 38... Ba2
{[%clk 0:00:19.9]} 39. Kc2 {[%clk 0:01:09.6]} 39... Bxb6 {[%clk 0:00:20.1]} 40.
Bxb6 {[%clk 0:01:08.9]} 40... Bc4 {[%clk 0:00:21]} 41. g3 {[%clk 0:01:07.1]}
41... Bf1 {[%clk 0:00:18.8]} 42. h4 {[%clk 0:01:07]} 42... h5 {[%clk 0:00:16.7]}
43. b3 {[%clk 0:01:06.7]} 43... g6 {[%clk 0:00:15.9]} 44. a4 {[%clk 0:01:07]}
44... Kd7 {[%clk 0:00:13.4]} 45. Kd2 {[%clk 0:01:01.7]} 45... Kc6 {[%clk
0:00:13]} 46. Bd8 {[%clk 0:01:00.7]} 46... Bh3 {[%clk 0:00:12.3]} 47. Kd3 {[%clk
0:01:00.5]} 47... Be6 {[%clk 0:00:12.2]} 48. Kc3 {[%clk 0:01:00.2]} 48... Bg4
{[%clk 0:00:09.6]} 49. a5 {[%clk 0:00:58.4]} 49... Bf3 {[%clk 0:00:08.2]} 50.
Kd3 {[%clk 0:00:58.2]} 50... Bd1 {[%clk 0:00:08.6]} 51. a6 {[%clk 0:00:58.2]}
51... Bxb3 {[%clk 0:00:08]} 52. a7 {[%clk 0:00:58.5]} 52... Kb7 {[%clk
0:00:06.9]} 53. Bc7 {[%clk 0:00:59.1]} 53... d5 {[%clk 0:00:05]} 54. Bxe5 {[%clk
0:00:56.3]} 54... dxe4+ {[%clk 0:00:05.3]} 55. Kxe4 {[%clk 0:00:56.4]} 55...
Kxa7 {[%clk 0:00:06.1]} 56. Bd4+ {[%clk 0:00:56.3]} 56... Kb7 {[%clk 0:00:06.5]}
57. Ke5 {[%clk 0:00:56.6]} 57... Bc2 {[%clk 0:00:06.9]} 58. Kd6 {[%clk
0:00:55.9]} 58... Bd3 {[%clk 0:00:06.6]} 59. Be5 {[%clk 0:00:56]} 59... Bf5
{[%clk 0:00:05.9]} 60. Bd4 {[%clk 0:00:56]} 60... Bd3 {[%clk 0:00:06.5]} 61. Be5
{[%clk 0:00:56.2]} 61... Bf5 {[%clk 0:00:07.1]} 62. Bd4 {[%clk 0:00:56.6]} 62...
Bd3 {[%clk 0:00:07.7]} 1/2-1/2

[Event "Early-Titled-Tuesday-Blitz-August-29-2023"]
[Site "Chess.com"]
[Date "2023.08.29"]
[Round "4"]
[White "Sleepless_Knightmare"]
[Black "maksimys18"]
[Result "0-1"]
[WhiteElo "2364"]
[BlackElo "2526"]
[TimeControl "180+1"]
[EndTime "8:39:34 PDT"]
[Termination "maksimys18 won by resignation"]

1. e4 {[%clk 0:03:00.9]} 1... e6 {[%clk 0:03:00.9]} 2. d4 {[%clk 0:03:00.6]}
2... d5 {[%clk 0:03:01.4]} 3. Nc3 {[%clk 0:03:01.2]} 3... Bb4 {[%clk 0:03:01.3]}
4. e5 {[%clk 0:03:00.8]} 4... Ne7 {[%clk 0:03:01.3]} 5. Qg4 {[%clk 0:02:58.7]}
5... c5 {[%clk 0:03:01.3]} 6. dxc5 {[%clk 0:02:54.5]} 6... d4 {[%clk 0:03:01.2]}
7. a3 {[%clk 0:02:49.4]} 7... Qa5 {[%clk 0:02:58.1]} 8. axb4 {[%clk 0:02:49.3]}
8... Qxa1 {[%clk 0:02:57.7]} 9. Nce2 {[%clk 0:02:48.5]} 9... Nbc6 {[%clk
0:02:56.4]} 10. Nf3 {[%clk 0:02:35.1]} 10... Bd7 {[%clk 0:02:49]} 11. Nfxd4
{[%clk 0:02:34.2]} 11... Nxd4 {[%clk 0:02:47.5]} 12. Qxd4 {[%clk 0:02:33.3]}
12... O-O-O {[%clk 0:02:47]} 13. b3 {[%clk 0:02:30.8]} 13... Qxd4 {[%clk
0:02:36.1]} 14. Nxd4 {[%clk 0:02:30.9]} 14... Nc6 {[%clk 0:02:36.5]} 15. Nxc6
{[%clk 0:02:29.8]} 15... Bxc6 {[%clk 0:02:37.4]} 16. Be3 {[%clk 0:02:16.6]}
16... Rd5 {[%clk 0:02:35.7]} 17. f4 {[%clk 0:02:14.5]} 17... Rhd8 {[%clk
0:02:35.3]} 18. Be2 {[%clk 0:02:14.5]} 18... f6 {[%clk 0:02:31.2]} 19. exf6
{[%clk 0:02:10.5]} 19... gxf6 {[%clk 0:02:32.1]} 20. b5 {[%clk 0:02:06.9]} 20...
Be8 {[%clk 0:02:29.8]} 21. Kf2 {[%clk 0:02:03.2]} 21... e5 {[%clk 0:02:26.1]}
22. Bf3 {[%clk 0:01:54.4]} 22... exf4 {[%clk 0:02:18.3]} 23. Bxf4 {[%clk
0:01:47.5]} 23... Rxc5 {[%clk 0:02:16.6]} 24. c4 {[%clk 0:01:47.6]} 24... a6
{[%clk 0:02:13.1]} 25. bxa6 {[%clk 0:01:46.7]} 25... bxa6 {[%clk 0:02:12.9]} 26.
Ra1 {[%clk 0:01:43.2]} 26... a5 {[%clk 0:02:12.4]} 27. Bd5 {[%clk 0:01:37.8]}
27... a4 {[%clk 0:01:54.2]} 28. bxa4 {[%clk 0:01:34.5]} 28... Ra5 {[%clk
0:01:29]} 29. Rb1 {[%clk 0:01:33.6]} 29... Rdxd5 {[%clk 0:00:52.6]} 30. cxd5
{[%clk 0:01:23]} 30... Rxa4 {[%clk 0:00:50.5]} 31. Kg3 {[%clk 0:01:20.1]} 31...
Bg6 {[%clk 0:00:48.3]} 32. Rb8+ {[%clk 0:01:17.9]} 32... Kd7 {[%clk 0:00:48.5]}
33. Rb6 {[%clk 0:01:18]} 33... Ra3+ {[%clk 0:00:43.9]} 34. Kh4 {[%clk 0:01:17]}
34... f5 {[%clk 0:00:44.2]} 35. Rd6+ {[%clk 0:01:11.5]} 35... Ke8 {[%clk
0:00:42.5]} 36. g3 {[%clk 0:01:10.9]} 36... Ra2 {[%clk 0:00:40.6]} 37. h3 {[%clk
0:01:10.6]} 37... Ra3 {[%clk 0:00:36]} 38. Kg5 {[%clk 0:01:09.9]} 38... Rd3
{[%clk 0:00:34.4]} 39. Re6+ {[%clk 0:01:02.1]} 39... Kf7 {[%clk 0:00:33]} 40.
Rf6+ {[%clk 0:01:01.6]} 40... Kg7 {[%clk 0:00:32.1]} 41. d6 {[%clk 0:01:01.9]}
41... h6+ {[%clk 0:00:31.2]} 42. Kh4 {[%clk 0:01:01.9]} 42... Kxf6 {[%clk
0:00:30.9]} 43. Bxh6 {[%clk 0:01:02.1]} 43... Rxd6 {[%clk 0:00:29.6]} 44. g4
{[%clk 0:01:01.1]} 44... Rd4 {[%clk 0:00:26.6]} 45. Kg3 {[%clk 0:00:58.2]} 45...
fxg4 {[%clk 0:00:22.2]} 46. hxg4 {[%clk 0:00:57.1]} 46... Ra4 {[%clk 0:00:22.2]}
47. Bc1 {[%clk 0:00:48.3]} 47... Be8 {[%clk 0:00:21.6]} 48. Bb2+ {[%clk
0:00:46.9]} 48... Kg6 {[%clk 0:00:22.2]} 49. Bc1 {[%clk 0:00:42]} 49... Bd7
{[%clk 0:00:23.1]} 50. g5 {[%clk 0:00:42]} 50... Bf5 {[%clk 0:00:22.9]} 51. Kf2
{[%clk 0:00:41.6]} 51... Kh5 {[%clk 0:00:23.5]} 52. Ke2 {[%clk 0:00:40.8]} 52...
Bg6 {[%clk 0:00:23.9]} 53. Kf3 {[%clk 0:00:40.3]} 53... Kh4 {[%clk 0:00:23.4]}
54. Be3 {[%clk 0:00:38.6]} 54... Ra3 {[%clk 0:00:22.7]} 55. Kf4 {[%clk
0:00:37.2]} 55... Kh3 {[%clk 0:00:23.1]} 56. Bd4 {[%clk 0:00:35.6]} 56... Ra4
{[%clk 0:00:21.8]} 57. Ke5 {[%clk 0:00:35.4]} 57... Kg4 {[%clk 0:00:21.5]} 58.
Be3 {[%clk 0:00:35.4]} 58... Rf4 {[%clk 0:00:21.1]} 0-1

[Event "Early-Titled-Tuesday-Blitz-August-29-2023"]
[Site "Chess.com"]
[Date "2023.08.29"]
[Round "4"]
[White "parintele_chess"]
[Black "Colombiano07"]
[Result "0-1"]
[WhiteElo "2219"]
[BlackElo "2390"]
[TimeControl "180+1"]
[EndTime "8:39:37 PDT"]
[Termination "Colombiano07 won by checkmate"]

1. d4 {[%clk 0:03:00.9]} 1... d5 {[%clk 0:02:59.1]} 2. Bf4 {[%clk 0:02:59.1]}
2... c5 {[%clk 0:02:58.1]} 3. e3 {[%clk 0:02:59]} 3... cxd4 {[%clk 0:02:58.7]}
4. exd4 {[%clk 0:02:59.2]} 4... Nc6 {[%clk 0:02:58.8]} 5. Nf3 {[%clk 0:02:59]}
5... Nf6 {[%clk 0:02:59.3]} 6. Nbd2 {[%clk 0:02:55.4]} 6... Bg4 {[%clk
0:02:58.9]} 7. c3 {[%clk 0:02:54.3]} 7... e6 {[%clk 0:02:58.2]} 8. Be2 {[%clk
0:02:52.4]} 8... Bd6 {[%clk 0:02:57.6]} 9. Bxd6 {[%clk 0:02:49.1]} 9... Qxd6
{[%clk 0:02:58.5]} 10. h3 {[%clk 0:02:48.1]} 10... Bh5 {[%clk 0:02:58.2]} 11.
O-O {[%clk 0:02:46.6]} 11... O-O {[%clk 0:02:58.4]} 12. Ne5 {[%clk 0:02:41.3]}
12... Nxe5 {[%clk 0:02:55.1]} 13. Bxh5 {[%clk 0:02:38.9]} 13... Nxh5 {[%clk
0:02:46.3]} 14. Qxh5 {[%clk 0:02:39.8]} 14... Ng6 {[%clk 0:02:36.2]} 15. a4
{[%clk 0:02:01.9]} 15... a5 {[%clk 0:02:26.4]} 16. Qf3 {[%clk 0:01:52.1]} 16...
Qf4 {[%clk 0:02:23.9]} 17. Qxf4 {[%clk 0:01:42.2]} 17... Nxf4 {[%clk 0:02:24.8]}
18. Nb3 {[%clk 0:01:42.4]} 18... Rfb8 {[%clk 0:02:18.3]} 19. Nc5 {[%clk
0:01:27.7]} 19... b6 {[%clk 0:02:16.3]} 20. Nd7 {[%clk 0:01:27]} 20... Rb7
{[%clk 0:02:15.5]} 21. Ne5 {[%clk 0:01:26.6]} 21... f6 {[%clk 0:02:14.6]} 22.
Nf3 {[%clk 0:01:23.3]} 22... b5 {[%clk 0:02:12.4]} 23. axb5 {[%clk 0:01:22.7]}
23... Rxb5 {[%clk 0:02:13.3]} 24. b4 {[%clk 0:01:22.7]} 24... Ra6 {[%clk
0:01:52.3]} 25. Ra4 {[%clk 0:01:06.4]} 25... Ne2+ {[%clk 0:01:50.8]} 26. Kh2
{[%clk 0:01:05.1]} 26... Nxc3 {[%clk 0:01:51.7]} 27. Rxa5 {[%clk 0:01:04]} 27...
Raxa5 {[%clk 0:01:50.1]} 28. bxa5 {[%clk 0:01:04.9]} 28... Rxa5 {[%clk
0:01:50.9]} 29. Rc1 {[%clk 0:01:04.2]} 29... Ra3 {[%clk 0:01:48.8]} 30. Rc2
{[%clk 0:00:56.7]} 30... Kf7 {[%clk 0:01:47.8]} 31. Rb2 {[%clk 0:00:56.7]} 31...
Ra7 {[%clk 0:01:45]} 32. Nd2 {[%clk 0:00:56]} 32... Ne4 {[%clk 0:01:42.9]} 33.
Nxe4 {[%clk 0:00:49.7]} 33... dxe4 {[%clk 0:01:43.8]} 34. Kg3 {[%clk 0:00:42.4]}
34... Rd7 {[%clk 0:01:41.7]} 35. Rb4 {[%clk 0:00:40.7]} 35... f5 {[%clk
0:01:39.2]} 36. Kf4 {[%clk 0:00:40.2]} 36... Kf6 {[%clk 0:01:39.8]} 37. h4
{[%clk 0:00:37.3]} 37... Rxd4 {[%clk 0:01:39.6]} 38. Rxd4 {[%clk 0:00:32.9]}
38... e5+ {[%clk 0:01:39]} 39. Ke3 {[%clk 0:00:33.8]} 39... exd4+ {[%clk
0:01:39.9]} 40. Kxd4 {[%clk 0:00:34.7]} 40... g6 {[%clk 0:01:38]} 41. Kd5 {[%clk
0:00:31.5]} 41... h6 {[%clk 0:01:37.6]} 42. g3 {[%clk 0:00:26.7]} 42... g5
{[%clk 0:01:36.9]} 43. h5 {[%clk 0:00:20.6]} 43... g4 {[%clk 0:01:10.7]} 44. Kd4
{[%clk 0:00:11]} 44... Ke6 {[%clk 0:01:08.4]} 45. Ke3 {[%clk 0:00:09.5]} 45...
Ke5 {[%clk 0:01:08.4]} 46. Ke2 {[%clk 0:00:09.9]} 46... f4 {[%clk 0:01:08.5]}
47. gxf4+ {[%clk 0:00:10.1]} 47... Kxf4 {[%clk 0:01:09.4]} 48. Kd2 {[%clk
0:00:10.2]} 48... Kf3 {[%clk 0:01:08.3]} 49. Ke1 {[%clk 0:00:10.3]} 49... e3
{[%clk 0:01:02.7]} 50. fxe3 {[%clk 0:00:10.3]} 50... Kxe3 {[%clk 0:01:03.6]} 51.
Kf1 {[%clk 0:00:10.8]} 51... Kf3 {[%clk 0:01:04.3]} 52. Kg1 {[%clk 0:00:10.9]}
52... Kg3 {[%clk 0:01:04.9]} 53. Kh1 {[%clk 0:00:10.6]} 53... Kh3 {[%clk
0:01:03.7]} 54. Kg1 {[%clk 0:00:10.8]} 54... g3 {[%clk 0:01:03.9]} 55. Kh1
{[%clk 0:00:11.3]} 55... Kh4 {[%clk 0:00:51.6]} 56. Kg2 {[%clk 0:00:11.5]} 56...
Kg4 {[%clk 0:00:52.2]} 57. Kg1 {[%clk 0:00:11.9]} 57... Kxh5 {[%clk 0:00:52.5]}
58. Kg2 {[%clk 0:00:12.8]} 58... Kg4 {[%clk 0:00:53.4]} 59. Kg1 {[%clk
0:00:13.7]} 59... h5 {[%clk 0:00:54]} 60. Kg2 {[%clk 0:00:14]} 60... h4 {[%clk
0:00:54.9]} 61. Kg1 {[%clk 0:00:14.8]} 61... h3 {[%clk 0:00:55.1]} 62. Kh1
{[%clk 0:00:15.1]} 62... Kf3 {[%clk 0:00:55.4]} 63. Kg1 {[%clk 0:00:15.6]} 63...
Ke2 {[%clk 0:00:55.6]} 64. Kh1 {[%clk 0:00:15.6]} 64... g2+ {[%clk 0:00:55.4]}
65. Kg1 {[%clk 0:00:14.6]} 65... Ke1 {[%clk 0:00:55.6]} 66. Kh2 {[%clk
0:00:14.2]} 66... Kf2 {[%clk 0:00:56.5]} 67. Kxh3 {[%clk 0:00:14.7]} 67... g1=Q
{[%clk 0:00:57.4]} 68. Kh4 {[%clk 0:00:15.2]} 68... Qg6 {[%clk 0:00:56.4]} 69.
Kh3 {[%clk 0:00:16.1]} 69... Qg3# {[%clk 0:00:57]} 0-1